bitfinex-derivatives/quotes_ETHF0:USTF0_20260119
["timestamp","ask_amount","ask_price","bid_price","bid_amount"]
[1768857478432,0.93266895,3213.6,3212.3,3.688862]
[1768857478734,0.93266895,3213.5,3212.3,3.688862]
[1768857479033,1.11949452,3213.9,3212.3,3.688862]
[1768857479236,1.11632679,3213.7,3212.3,3.688862]
[1768857479436,0.93380378,3213.6,3212.3,3.688862]
[1768857480241,1.11632679,3213.6,3212.3,4.188862]
[1768857480443,0.93380378,3213.5,3212.3,4.188862]
[1768857480833,0.93380378,3213.5,3212.5,3.533132]
[1768857481033,0.93380378,3213.4,3212.5,3.533132]
[1768857481234,0.93820791,3213.3,3212.5,3.533132]
[1768857481429,0.93820791,3213.2,3212.5,3.533132]
[1768857481641,1.11632679,3213.6,3212.5,3.533132]
[1768857481839,0.93824163,3213.5,3212.5,3.533132]
[1768857482044,0.93824163,3213.4,3212.5,3.533132]
[1768857482242,0.93824163,3213.3,3212.5,3.533132]
[1768857482438,0.93824163,3213.2,3212.5,3.533132]
[1768857482643,0.93824163,3213.1,3212.5,3.533132]
[1768857482844,1.11632679,3213.5,3212.5,3.533132]
[1768857483045,0.93921036,3213.4,3212.5,3.533132]
[1768857483240,2.05553715,3213.4,3212.5,3.533132]
[1768857483542,0.93921036,3213.3,3212.5,3.533132]
[1768857484344,0.93921036,3213.2,3212.5,3.533132]
[1768857484554,0.93921036,3213.1,3212.5,3.533132]
[1768857484850,0.93921036,3213.0,3212.5,3.533132]
[1768857485054,1.11632679,3213.4,3212.5,3.533132]
[1768857487360,1.11632679,3213.5,3212.5,3.533132]
[1768857490254,1.11632679,3213.6,3212.5,3.533132]
[1768857492765,1.11632679,3213.6,3212.5,3.688852]
[1768857493162,1.11632679,3213.6,3212.7,3.533132]
[1768857493462,1.11632679,3213.7,3212.7,3.688842]
[1768857493856,1.66982718,3213.9,3212.9,3.533132]
[1768857493857,0.00316773,3213.9,3212.9,3.533132]
[1768857494057,0.00316773,3213.9,3212.9,3.53662542]
[1768857497065,0.94202994,3213.8,3212.9,3.53662542]
[1768857497261,0.94248445,3213.7,3212.9,3.53662542]
[1768857497461,0.00316773,3213.9,3212.9,3.53662542]
[1768857497662,0.94248408,3213.8,3212.9,3.53662542]
[1768857497864,0.94248408,3213.7,3212.9,3.53662542]
[1768857498061,0.00316773,3213.9,3212.9,3.53662542]
[1768857498263,0.94240208,3213.8,3212.9,3.53662542]
[1768857498462,0.94240208,3213.7,3212.9,3.53662542]
[1768857498766,0.00316773,3213.9,3212.9,3.53662542]
[1768857498967,0.9428265,3213.8,3212.9,3.53662542]
[1768857499269,0.9428265,3213.7,3212.9,3.53662542]
[1768857499567,0.00316773,3213.9,3212.9,3.53662542]
[1768857499766,0.94294255,3213.8,3212.9,3.53662542]
[1768857499960,0.94294255,3213.7,3212.9,3.53662542]
[1768857500160,0.00316773,3213.9,3212.9,3.53662542]
[1768857500353,0.94312353,3213.8,3212.9,3.53662542]
[1768857500557,0.94312353,3213.7,3212.9,3.53662542]
[1768857500754,0.00316773,3213.9,3212.9,3.53662542]
[1768857500958,0.94312439,3213.8,3212.9,3.53662542]
[1768857501155,0.94312439,3213.7,3212.9,3.53662542]
[1768857501362,0.00316773,3213.9,3212.9,3.53662542]
[1768857501669,0.94331179,3213.8,3212.9,3.53662542]
[1768857501870,0.94331179,3213.7,3212.9,3.53662542]
[1768857502170,0.94331179,3213.6,3212.9,3.53662542]
[1768857502377,0.00316773,3213.9,3212.9,3.53662542]
[1768857502567,0.94355658,3213.8,3212.9,3.53662542]
[1768857502864,0.94355658,3213.7,3212.9,3.53662542]
[1768857503055,0.94355658,3213.6,3212.9,3.53662542]
[1768857503261,0.00316773,3213.9,3212.9,3.53662542]
[1768857503455,0.9439044,3213.8,3212.9,3.53662542]
[1768857503661,0.9439044,3213.7,3212.9,3.53662542]
[1768857503872,0.9439044,3213.6,3212.9,3.53662542]
[1768857504062,0.00316773,3213.9,3212.9,3.53662542]
[1768857504262,0.94391267,3213.8,3212.9,3.53662542]
[1768857504474,0.94391267,3213.7,3212.9,3.53662542]
[1768857504773,0.94391267,3213.6,3212.9,3.53662542]
[1768857504975,0.00316773,3213.9,3213.1,3.56979418]
[1768857505179,0.94443193,3213.8,3213.1,3.56979418]
[1768857505472,0.94443193,3213.7,3213.1,3.56979418]
[1768857505656,0.00316773,3213.9,3213.1,3.56979418]
[1768857505857,0.94482877,3213.8,3213.1,3.56979418]
[1768857506057,0.94482877,3213.7,3213.1,3.56979418]
[1768857506259,0.00316773,3213.9,3213.1,3.56979418]
[1768857506476,0.94490632,3213.8,3213.1,3.56979418]
[1768857506768,0.94490632,3213.7,3213.1,3.56979418]
[1768857506956,0.00316773,3213.9,3213.1,3.56979418]
[1768857507160,0.9449064,3213.8,3213.1,3.56979418]
[1768857507458,0.9449064,3213.7,3213.1,3.56979418]
[1768857507664,0.00316773,3213.9,3213.1,3.56979418]
[1768857507864,0.94410294,3213.8,3213.1,3.56979418]
[1768857508063,0.94410294,3213.7,3213.1,3.56979418]
[1768857508272,0.00316773,3213.9,3213.1,3.56979418]
[1768857508475,0.94416159,3213.8,3213.1,3.56979418]
[1768857508674,0.00316773,3213.9,3213.1,3.56979418]
[1768857509769,0.00316773,3213.9,3213.3,3.56979418]
[1768857509969,1.11285139,3214.2,3213.3,3.72547418]
[1768857510172,1.11285139,3214.3,3213.3,3.72547418]
[1768857511167,1.11549076,3214.3,3213.3,3.72547418]
[1768857511570,1.11285139,3214.2,3212.9,3.5732876]
[1768857512967,1.11285139,3214.2,3212.9,3.7289876]
[1768857515077,1.11285139,3214.2,3213.1,3.56979418]
[1768857515281,1.11285139,3214.2,3213.1,3.72548418]
[1768857517679,1.11549076,3214.3,3213.1,3.72548418]
[1768857517982,1.11285139,3214.2,3213.1,3.72548418]
[1768857521983,1.11285139,3214.2,3213.3,0.5]
[1768857522182,2.05384682,3214.1,3213.3,0.5]
[1768857522376,0.94099543,3214.0,3213.3,3.88672809]
[1768857522572,0.94099543,3213.9,3213.3,3.88672809]
[1768857522784,0.94099543,3213.8,3213.3,3.88672809]
[1768857522986,1.11285139,3214.2,3213.3,3.88672809]
[1768857523184,1.11285139,3214.1,3213.3,3.88672809]
[1768857524086,1.11285139,3214.2,3213.3,3.88672809]
[1768857525580,1.11285139,3214.2,3213.3,4.04240809]
[1768857525776,1.66665945,3214.6,3213.7,3.54238809]
[1768857525981,1.66665945,3214.8,3213.7,3.38672809]
[1768857526180,1.66665945,3215.0,3213.7,3.38672809]
[1768857527286,0.00314789,3215.0,3213.7,3.38672809]
[1768857527587,0.00314789,3215.0,3213.9,3.38672809]
[1768857528089,0.00314789,3215.0,3214.1,3.38672809]
[1768857532891,0.00314789,3215.0,3214.1,3.54236809]
[1768857534695,0.00314789,3215.0,3214.1,3.38672809]
[1768857534993,0.9261215,3214.9,3214.1,3.38672809]
[1768857535189,0.9261215,3214.8,3214.1,3.38672809]
[1768857535388,0.00314789,3215.0,3214.1,3.38672809]
[1768857535588,0.9260383,3214.9,3214.1,3.38672809]
[1768857535790,0.00314789,3215.0,3214.1,3.38672809]
[1768857535791,0.9260383,3214.8,3214.1,3.38672809]
[1768857535992,0.00314789,3215.0,3214.1,3.38672809]
[1768857536294,0.92603832,3214.9,3214.1,3.38672809]
[1768857536485,0.00314789,3215.0,3214.1,3.38672809]
[1768857536794,0.92597792,3214.9,3214.1,3.38672809]
[1768857536982,0.00314789,3215.0,3214.1,3.38672809]
[1768857537281,0.92585578,3214.9,3214.1,3.38672809]
[1768857537486,0.00314789,3215.0,3214.1,3.38672809]
[1768857537793,0.91801295,3214.9,3214.1,3.38672809]
[1768857537994,0.00314789,3215.0,3214.1,3.38672809]
[1768857538194,0.91801223,3214.9,3214.1,3.38672809]
[1768857538386,0.00314789,3215.0,3214.1,3.38672809]
[1768857538586,0.91798857,3214.9,3214.1,3.38672809]
[1768857538795,0.00314789,3215.0,3214.1,3.38672809]
[1768857538995,0.91798874,3214.9,3214.1,3.38672809]
[1768857539187,0.00314789,3215.0,3214.1,3.38672809]
[1768857539386,0.9186695,3214.9,3214.1,3.38672809]
[1768857539586,0.00314789,3215.0,3214.1,3.38672809]
[1768857539786,0.9186695,3214.9,3214.1,3.38672809]
[1768857539981,0.00314789,3215.0,3214.1,3.38672809]
[1768857540192,0.91866953,3214.9,3214.1,3.38672809]
[1768857540392,0.00314789,3215.0,3214.1,3.38672809]
[1768857540586,0.91865002,3214.9,3214.1,3.38672809]
[1768857540782,0.00314789,3215.0,3214.1,3.38672809]
[1768857541087,0.91865094,3214.9,3214.1,3.38672809]
[1768857541387,1.29482801,3215.0,3214.1,3.38672809]
[1768857541686,0.91863836,3214.9,3214.1,3.38672809]
[1768857541888,1.29482801,3215.0,3214.1,3.38672809]
[1768857542084,0.91863914,3214.9,3214.1,3.38672809]
[1768857542396,1.29168012,3214.6,3213.6,3.42065212]
[1768857542695,1.29168012,3214.8,3213.6,3.42065212]
[1768857545390,0.00314789,3215.0,3213.6,3.42065212]
[1768857545585,0.91888621,3214.9,3213.8,3.42065212]
[1768857545797,1.29482801,3215.0,3213.8,3.42065212]
[1768857545995,0.91888702,3214.9,3213.8,3.42065212]
[1768857546198,0.00314789,3215.0,3213.8,3.42065212]
[1768857546398,0.91899395,3214.9,3213.8,3.42065212]
[1768857546603,0.00314789,3215.0,3213.8,3.42065212]
[1768857546902,0.91899142,3214.9,3213.8,3.42065212]
[1768857547109,0.00314789,3215.0,3213.8,3.42065212]
[1768857547399,0.91919112,3214.9,3213.8,3.42065212]
[1768857555804,1.29168012,3214.8,3213.8,3.42065212]
[1768857556106,0.91919112,3214.7,3213.8,3.42065212]
[1768857557107,0.91919112,3214.6,3213.8,3.42065212]
[1768857557310,0.91919112,3214.5,3213.8,3.42065212]
[1768857557502,1.11728261,3214.9,3213.8,3.42065212]
[1768857557905,2.03999419,3214.9,3213.8,3.42065212]
[1768857558406,2.03999419,3214.9,3213.9,3.42065212]
[1768857558598,0.92271158,3214.8,3214.0,1.29168012]
[1768857558802,1.11728261,3214.9,3214.1,3.42065212]
[1768857559708,1.1204305,3215.0,3214.1,3.42065212]
[1768857570832,0.91867762,3214.9,3214.1,3.42065212]
[1768857571022,0.91867762,3214.8,3214.1,3.42065212]
[1768857571222,0.91867762,3214.7,3214.1,3.42065212]
[1768857571424,0.91867762,3214.6,3214.1,3.42065212]
[1768857571623,1.1204305,3215.0,3214.1,3.42065212]
[1768857575530,1.1204305,3215.0,3214.2,3.57670328]
[1768857575731,0.00314789,3215.0,3214.2,3.57670328]
[1768857581943,1.29168012,3214.9,3214.0,0.15565]
[1768857582647,1.29168012,3214.9,3213.8,3.43404546]
[1768857583546,0.91310202,3214.8,3213.8,3.43404546]
[1768857583748,0.91310202,3214.7,3213.8,3.43404546]
[1768857583949,1.29168012,3214.9,3213.8,3.43404546]
[1768857584245,0.913102,3214.8,3213.8,3.43404546]
[1768857584446,0.913102,3214.7,3213.8,3.43404546]
[1768857584647,1.29482801,3215.0,3213.8,3.43404546]
[1768857584846,0.91310555,3214.9,3213.8,3.43404546]
[1768857585047,0.91310555,3214.8,3213.8,3.43404546]
[1768857585246,0.91310555,3214.7,3213.8,3.43404546]
[1768857585450,1.29482801,3215.0,3213.8,3.43404546]
[1768857585651,0.91310874,3214.9,3213.8,3.43404546]
[1768857585854,0.91310874,3214.8,3213.8,3.43404546]
[1768857586053,0.91310874,3214.7,3213.8,3.43404546]
[1768857586254,1.29482801,3215.0,3213.8,3.43404546]
[1768857586455,0.91311483,3214.9,3213.8,3.43404546]
[1768857586655,0.91311483,3214.8,3213.8,3.43404546]
[1768857586850,0.91311483,3214.7,3213.8,3.43404546]
[1768857587049,1.29482801,3215.0,3213.8,3.43404546]
[1768857587249,0.91311546,3214.9,3213.8,3.43404546]
[1768857587551,1.29168012,3214.7,3213.8,3.43404546]
[1768857587853,0.91311546,3214.6,3213.8,3.43404546]
[1768857588054,1.29168012,3214.7,3213.8,3.43404546]
[1768857588242,0.91308427,3214.6,3213.6,4.53467]
[1768857588442,1.29168012,3214.4,3213.4,3.43404546]
[1768857588648,1.29168012,3214.1,3213.0,3.58974546]
[1768857588946,1.29168012,3214.2,3213.0,3.58974546]
[1768857590557,0.91267204,3214.1,3213.0,3.58974546]
[1768857590855,2.4082666,3214.2,3213.0,3.58974546]
[1768857591656,0.91265223,3214.1,3213.0,3.58974546]
[1768857592353,0.91265223,3214.0,3213.0,3.58974546]
[1768857592554,0.91265223,3213.9,3213.0,3.58974546]
[1768857592753,0.91265223,3213.8,3213.0,3.58974546]
[1768857592953,2.4082666,3214.2,3213.0,3.58974546]
[1768857593153,0.91263566,3214.1,3213.0,3.58974546]
[1768857593352,2.4082666,3214.2,3213.0,3.58974546]
[1768857593353,0.91263566,3214.0,3213.0,3.58974546]
[1768857593549,0.91263566,3213.9,3213.0,3.58974546]
[1768857593751,1.29168012,3214.2,3213.0,3.58974546]
[1768857593950,0.91181133,3214.1,3213.0,3.58974546]
[1768857594153,0.91181133,3214.0,3213.0,3.58974546]
[1768857594365,1.29168012,3214.2,3213.0,3.58974546]
[1768857594654,0.91129915,3214.1,3213.0,3.58974546]
[1768857594848,0.91129915,3214.0,3213.0,3.58974546]
[1768857595048,1.29168012,3214.2,3213.0,3.58974546]
[1768857595245,0.91129915,3214.1,3213.0,3.58974546]
[1768857595548,0.91129915,3214.0,3213.0,3.58974546]
[1768857595748,1.29168012,3214.2,3213.0,3.58974546]
[1768857595948,0.91091306,3214.1,3213.0,3.58974546]
[1768857596155,0.91091306,3214.0,3213.0,3.58974546]
[1768857596356,1.29168012,3214.2,3213.0,3.58974546]
[1768857596552,0.91059788,3214.1,3213.0,3.58974546]
[1768857596748,1.29168012,3214.2,3213.0,3.58974546]
[1768857596957,0.91059612,3214.1,3213.0,3.58974546]
[1768857597259,1.29168012,3214.2,3213.0,3.58974546]
[1768857597453,0.91020119,3214.1,3213.0,3.58974546]
[1768857597659,1.29168012,3214.2,3213.0,3.58974546]
[1768857597853,0.91020147,3214.1,3213.0,3.58974546]
[1768857598154,1.29168012,3214.2,3213.0,3.58974546]
[1768857598345,0.90997537,3214.1,3213.0,3.58974546]
[1768857598547,1.29168012,3214.2,3213.0,3.58974546]
[1768857598857,0.90997599,3214.1,3213.0,3.58974546]
[1768857599049,1.29168012,3214.2,3213.0,3.58974546]
[1768857599245,0.90996971,3214.1,3213.0,3.58974546]
[1768857599551,1.29168012,3214.2,3213.0,3.58974546]
[1768857599749,0.90978571,3214.1,3213.0,3.58974546]
[1768857599958,1.29168012,3214.2,3213.0,3.58974546]
[1768857600258,0.90978595,3214.1,3213.0,3.58974546]
[1768857600456,1.29168012,3214.2,3213.0,3.58974546]
[1768857600658,0.90972698,3214.1,3213.0,3.58974546]
[1768857600860,1.29168012,3214.2,3213.0,3.58974546]
[1768857601157,0.90972623,3214.1,3213.0,3.58974546]
[1768857601355,1.29168012,3214.4,3213.0,3.58974546]
[1768857601547,0.90958498,3214.3,3213.0,3.58974546]
[1768857601858,0.90958498,3214.2,3213.0,3.58974546]
[1768857602057,1.29168012,3214.4,3213.0,3.58974546]
[1768857602253,5.22283176,3214.7,3213.5,3.37960392]
[1768857602254,0.9095852,3214.3,3213.5,3.37960392]
[1768857602460,2.96655984,3214.9,3213.0,1.29168012]
[1768857602461,1.11658648,3214.8,3214.1,3.37960392]
[1768857602754,0.00314789,3215.0,3214.1,3.37960392]
[1768857602959,0.90971068,3214.9,3213.7,3.53526392]
[1768857603153,0.90971068,3214.8,3213.7,3.53526392]
[1768857603348,0.00314789,3215.0,3213.7,3.53526392]
[1768857603661,0.90972091,3214.9,3213.7,3.53526392]
[1768857603857,0.90972091,3214.8,3213.7,3.53526392]
[1768857604157,0.00314789,3215.0,3213.7,3.53526392]
[1768857604456,0.90977281,3214.9,3213.7,3.53526392]
[1768857604757,0.90977281,3214.8,3213.7,3.53526392]
[1768857605062,0.00314789,3215.0,3213.7,3.53526392]
[1768857605258,0.90977559,3214.9,3213.7,3.53526392]
[1768857605449,0.90977559,3214.8,3213.7,3.53526392]
[1768857605650,0.00314789,3215.0,3213.7,3.53526392]
[1768857605850,0.90980088,3214.9,3213.7,3.53526392]
[1768857606050,0.90980088,3214.8,3213.7,3.53526392]
[1768857606249,0.00314789,3215.0,3213.7,3.53526392]
[1768857606457,0.90990619,3214.9,3213.7,3.53526392]
[1768857606657,0.90990619,3214.8,3213.7,3.53526392]
[1768857606859,0.00314789,3215.0,3213.7,3.53526392]
[1768857607059,0.90990443,3214.9,3213.7,3.53526392]
[1768857607359,0.90990443,3214.8,3213.7,3.53526392]
[1768857607552,0.00314789,3215.0,3213.7,3.53526392]
[1768857607750,0.91002976,3214.9,3213.7,3.53526392]
[1768857607951,0.91002976,3214.8,3213.7,3.53526392]
[1768857608148,0.00314789,3215.0,3213.7,3.53526392]
[1768857608454,0.91014449,3214.9,3213.7,3.53526392]
[1768857608655,0.91014449,3214.8,3213.7,3.53526392]
[1768857608857,0.00314789,3215.0,3213.7,3.53526392]
[1768857609157,0.91014317,3214.9,3213.7,3.53526392]
[1768857609456,0.91014317,3214.8,3213.7,3.53526392]
[1768857609652,0.91014317,3214.7,3213.7,3.53526392]
[1768857609857,0.00314789,3215.0,3213.7,3.53526392]
[1768857610063,0.91026733,3214.9,3213.7,3.53526392]
[1768857610359,0.91026733,3214.8,3213.7,3.53526392]
[1768857610557,0.91026733,3214.7,3213.7,3.53526392]
[1768857610753,0.00314789,3215.0,3213.7,3.53526392]
[1768857611053,0.91040063,3214.9,3213.7,3.53526392]
[1768857611255,0.00314789,3215.0,3213.7,3.53526392]
[1768857611256,0.91040063,3214.8,3213.7,3.53526392]
[1768857611561,0.91040063,3214.7,3213.7,3.53526392]
[1768857611753,0.00314789,3215.0,3213.7,3.53526392]
[1768857611955,0.91054425,3214.9,3213.7,3.53526392]
[1768857612268,0.91054425,3214.8,3213.7,3.53526392]
[1768857612461,0.91054425,3214.7,3213.7,3.53526392]
[1768857612763,0.00314789,3215.0,3213.7,3.53526392]
[1768857612965,0.91059944,3214.9,3213.7,3.53526392]
[1768857613163,0.91059944,3214.8,3213.7,3.53526392]
[1768857613460,0.91059944,3214.7,3213.7,3.53526392]
[1768857613661,0.00314789,3215.0,3213.7,3.53526392]
[1768857613850,0.91065447,3214.9,3213.7,3.53526392]
[1768857614052,0.91065447,3214.8,3213.7,3.53526392]
[1768857614364,0.91065447,3214.7,3213.7,3.53526392]
[1768857614556,0.00314789,3215.0,3213.7,3.53526392]
[1768857614757,0.91070951,3214.9,3213.7,3.53526392]
[1768857614950,0.91070951,3214.8,3213.7,3.53526392]
[1768857615150,0.91070951,3214.7,3213.7,3.53526392]
[1768857615357,0.00314789,3215.0,3213.7,3.53526392]
[1768857615561,0.91077133,3214.9,3213.7,3.53526392]
[1768857615760,0.91077133,3214.8,3213.7,3.53526392]
[1768857615961,0.91077133,3214.7,3213.7,3.53526392]
[1768857616163,0.00314789,3215.0,3213.7,3.53526392]
[1768857616360,0.91082852,3214.9,3213.7,3.53526392]
[1768857616562,0.91082852,3214.8,3213.7,3.53526392]
[1768857616760,0.91082852,3214.7,3213.7,3.53526392]
[1768857616957,0.00314789,3215.0,3213.7,3.53526392]
[1768857617157,0.91082774,3214.9,3213.7,3.53526392]
[1768857617357,0.91082774,3214.8,3213.7,3.53526392]
[1768857617653,0.91082774,3214.7,3213.7,3.53526392]
[1768857617863,0.00314789,3215.0,3213.7,3.53526392]
[1768857618163,0.91089417,3214.9,3213.7,3.53526392]
[1768857618361,0.91089417,3214.8,3213.7,3.53526392]
[1768857618562,0.91089417,3214.7,3213.7,3.53526392]
[1768857618764,0.00314789,3215.0,3213.7,3.53526392]
[1768857619062,0.91087805,3214.9,3213.7,3.53526392]
[1768857619264,0.91087805,3214.8,3213.7,3.53526392]
[1768857619453,0.91087805,3214.7,3213.7,3.53526392]
[1768857619653,0.91087805,3214.6,3213.7,3.53526392]
[1768857619857,1.11973437,3215.0,3213.7,3.53526392]
[1768857620053,0.91092561,3214.9,3213.7,3.53526392]
[1768857620256,0.91092561,3214.8,3213.7,3.53526392]
[1768857620456,0.91092561,3214.7,3213.7,3.53526392]
[1768857620665,0.91092561,3214.6,3213.7,3.53526392]
[1768857620865,1.11973437,3215.0,3213.7,3.53526392]
[1768857621054,0.91096006,3214.9,3213.7,3.53526392]
[1768857621254,0.91096006,3214.8,3213.7,3.53526392]
[1768857621457,0.91096006,3214.7,3213.7,3.53526392]
[1768857621655,0.91096006,3214.6,3213.7,3.53526392]
[1768857621871,1.11973437,3215.0,3213.7,3.53526392]
[1768857622059,0.91099517,3214.9,3213.7,3.53526392]
[1768857622260,0.91099517,3214.8,3213.7,3.53526392]
[1768857622557,0.91099517,3214.7,3213.7,3.53526392]
[1768857622758,0.91099517,3214.6,3213.7,3.53526392]
[1768857622970,1.11973437,3215.0,3213.7,3.53526392]
[1768857623264,0.91102652,3214.9,3213.7,3.53526392]
[1768857623471,0.91102652,3214.8,3213.7,3.53526392]
[1768857623660,0.91102652,3214.7,3213.7,3.53526392]
[1768857623861,0.91102652,3214.6,3213.7,3.53526392]
[1768857624064,1.11973437,3215.0,3213.7,3.53526392]
[1768857624364,0.91111911,3214.9,3213.7,3.53526392]
[1768857624576,0.91111911,3214.8,3213.7,3.53526392]
[1768857624868,0.91111911,3214.7,3213.7,3.53526392]
[1768857625160,0.91111911,3214.6,3213.7,3.53526392]
[1768857625361,1.11973437,3215.0,3213.7,3.53526392]
[1768857625561,0.91135019,3214.9,3213.7,3.53526392]
[1768857625760,0.91135019,3214.8,3213.7,3.53526392]
[1768857625969,0.91135019,3214.7,3213.7,3.53526392]
[1768857626168,0.91135019,3214.6,3213.7,3.53526392]
[1768857626368,1.11973437,3215.0,3213.7,3.53526392]
[1768857626670,0.91149693,3214.9,3213.7,3.53526392]
[1768857626869,0.91149693,3214.8,3213.7,3.53526392]
[1768857627071,0.91149693,3214.7,3213.7,3.53526392]
[1768857627371,0.91149693,3214.6,3213.7,3.53526392]
[1768857627669,1.11973437,3215.0,3213.7,3.53526392]
[1768857627970,0.91109339,3214.9,3213.7,3.53526392]
[1768857628164,0.91109339,3214.8,3213.7,3.53526392]
[1768857628370,0.91109339,3214.7,3213.7,3.53526392]
[1768857628564,0.91109339,3214.6,3213.7,3.53526392]
[1768857628757,1.11973437,3215.0,3213.7,3.53526392]
[1768857628962,0.91133628,3214.9,3213.7,3.53526392]
[1768857629265,0.91133628,3214.8,3213.7,3.53526392]
[1768857629570,0.91133628,3214.7,3213.7,3.53526392]
[1768857629770,0.91133628,3214.6,3213.7,3.53526392]
[1768857630072,1.11658648,3214.9,3213.7,3.53526392]
[1768857630262,0.91163284,3214.8,3213.7,3.53526392]
[1768857630462,0.91163284,3214.7,3213.7,3.53526392]
[1768857630663,0.91163284,3214.6,3213.7,3.53526392]
[1768857630863,1.11973437,3215.0,3213.7,3.53526392]
[1768857631065,0.91167301,3214.9,3213.7,3.53526392]
[1768857631360,0.00314789,3215.0,3213.9,3.35710689]
[1768857631565,0.91208553,3214.9,3213.9,3.35710689]
[1768857631765,0.00314789,3215.0,3213.9,3.35710689]
[1768857634175,0.00314789,3215.0,3214.4,0.03686677]
[1768857634562,0.00314789,3215.0,3214.7,0.07733542]
[1768857634976,0.00314789,3215.0,3214.8,0.1176917]
[1768857635167,0.00314789,3215.0,3214.2,3.35710689]
[1768857635368,0.00314789,3215.0,3214.6,0.01487899]
[1768857636371,1.11658648,3215.5,3214.8,0.01487899]
[1768857637274,1.11658648,3215.6,3214.8,0.01487899]
[1768857637476,0.00303491,3215.5,3215.2,0.01487899]
[1768857637678,0.00303491,3215.5,3215.2,0.01787651]
[1768857638076,0.00303491,3215.5,3214.6,3.35710689]
[1768857638281,0.00303491,3215.5,3214.3,0.15564]
[1768857639074,0.00303491,3215.5,3214.3,0.15914397]
[1768857641991,0.00303491,3215.5,3214.3,3.72692696]
[1768857643387,0.90754646,3215.4,3214.3,3.72692696]
[1768857643588,0.90754646,3215.3,3214.3,3.72692696]
[1768857643787,0.00303491,3215.5,3214.3,3.72692696]
[1768857643999,0.90754556,3215.4,3214.3,3.72692696]
[1768857644298,0.90754556,3215.3,3214.3,3.72692696]
[1768857644598,0.00303491,3215.5,3214.3,3.72692696]
[1768857644796,0.90745335,3215.4,3214.3,3.72692696]
[1768857645098,0.90745335,3215.3,3214.3,3.72692696]
[1768857645299,0.00303491,3215.5,3214.3,3.72692696]
[1768857645498,0.90736923,3215.4,3214.3,3.72692696]
[1768857645797,0.90736923,3215.3,3214.3,3.72692696]
[1768857645997,0.00303491,3215.5,3214.3,3.72692696]
[1768857646191,0.90736734,3215.4,3214.3,3.72692696]
[1768857646383,0.90736734,3215.3,3214.3,3.72692696]
[1768857646587,0.00303491,3215.5,3214.3,3.72692696]
[1768857646793,0.9073097,3215.4,3214.3,3.72692696]
[1768857646983,0.9073097,3215.3,3214.3,3.72692696]
[1768857647188,0.00303491,3215.5,3214.3,3.72692696]
[1768857647388,0.90727062,3215.4,3214.3,3.72692696]
[1768857647592,0.90727062,3215.3,3214.3,3.72692696]
[1768857647887,0.00303491,3215.5,3214.3,3.72692696]
[1768857648087,0.90724139,3215.4,3214.3,3.72692696]
[1768857648394,0.90724139,3215.3,3214.3,3.72692696]
[1768857648597,0.00303491,3215.5,3214.3,3.72692696]
[1768857648799,0.90721292,3215.4,3214.3,3.72692696]
[1768857648990,0.90721292,3215.3,3214.3,3.72692696]
[1768857649190,0.00303491,3215.5,3214.3,3.72692696]
[1768857649390,0.90721341,3215.4,3214.3,3.72692696]
[1768857649593,0.90721341,3215.3,3214.3,3.72692696]
[1768857649795,0.00303491,3215.5,3214.3,3.72692696]
[1768857649996,0.90721154,3215.4,3214.3,3.72692696]
[1768857650201,0.90721154,3215.3,3214.3,3.72692696]
[1768857650395,0.00303491,3215.5,3214.3,3.72692696]
[1768857650704,0.90722296,3215.4,3214.3,3.72692696]
[1768857650906,0.90722296,3215.3,3214.3,3.72692696]
[1768857651095,0.00303491,3215.5,3214.3,3.72692696]
[1768857651297,0.90722437,3215.4,3214.3,3.72692696]
[1768857651593,0.90722437,3215.3,3214.3,3.72692696]
[1768857651793,0.00303491,3215.5,3214.3,3.72692696]
[1768857652093,0.90725215,3215.4,3214.3,3.72692696]
[1768857652295,0.90725215,3215.3,3214.3,3.72692696]
[1768857652493,0.00303491,3215.5,3214.3,3.72692696]
[1768857652703,0.9072945,3215.4,3214.3,3.72692696]
[1768857652890,0.9072945,3215.3,3214.3,3.72692696]
[1768857653095,0.00303491,3215.5,3214.3,3.72692696]
[1768857653296,0.90729278,3215.4,3214.3,3.72692696]
[1768857653596,0.90729278,3215.3,3214.3,3.72692696]
[1768857653797,0.00303491,3215.5,3214.3,3.72692696]
[1768857654009,0.9073534,3215.4,3214.3,3.72692696]
[1768857654205,0.9073534,3215.3,3214.3,3.72692696]
[1768857654405,0.00303491,3215.5,3214.3,3.72692696]
[1768857654608,0.90748844,3215.4,3214.3,3.72692696]
[1768857654806,0.90748844,3215.3,3214.3,3.72692696]
[1768857655007,0.00303491,3215.5,3214.3,3.72692696]
[1768857655209,0.90748963,3215.4,3214.3,3.72692696]
[1768857655411,0.90748963,3215.3,3214.3,3.72692696]
[1768857655706,0.00303491,3215.5,3214.3,3.72692696]
[1768857655907,0.90758586,3215.4,3214.3,3.72692696]
[1768857656105,0.00303491,3215.5,3214.3,3.72692696]
[1768857656106,0.90758586,3215.3,3214.3,3.72692696]
[1768857656308,0.00303491,3215.5,3214.3,3.72692696]
[1768857656507,0.90768747,3215.4,3214.3,3.72692696]
[1768857656804,0.90768747,3215.3,3214.3,3.72692696]
[1768857657108,0.90768747,3215.2,3214.3,3.72692696]
[1768857657409,0.00303491,3215.5,3214.3,3.72692696]
[1768857657704,0.90609789,3215.4,3214.3,3.72692696]
[1768857657906,0.90609789,3215.3,3214.3,3.72692696]
[1768857658103,0.90609789,3215.2,3214.3,3.72692696]
[1768857658304,0.00303491,3215.5,3214.3,3.72692696]
[1768857658504,0.90624002,3215.4,3214.3,3.72692696]
[1768857658705,0.90624002,3215.3,3214.3,3.72692696]
[1768857658893,0.90624002,3215.2,3214.3,3.72692696]
[1768857659102,0.00303491,3215.5,3214.3,3.72692696]
[1768857659304,0.90608252,3215.4,3214.3,3.72692696]
[1768857659505,0.90608252,3215.3,3214.3,3.72692696]
[1768857659703,0.90608252,3215.2,3214.3,3.72692696]
[1768857659908,0.00303491,3215.5,3214.3,3.72692696]
[1768857660099,0.90625795,3215.4,3214.3,3.72692696]
[1768857660300,0.90625795,3215.3,3214.3,3.72692696]
[1768857660503,0.90625795,3215.2,3214.3,3.72692696]
[1768857660703,0.00303491,3215.5,3214.3,3.72692696]
[1768857660904,0.9064539,3215.4,3214.3,3.72692696]
[1768857661104,0.9064539,3215.3,3214.3,3.72692696]
[1768857661304,0.9064539,3215.2,3214.3,3.72692696]
[1768857661505,1.11962139,3215.5,3214.3,3.72692696]
[1768857661712,0.90665729,3215.4,3214.3,3.72692696]
[1768857662004,0.90665729,3215.3,3214.3,3.72692696]
[1768857662206,0.90665729,3215.2,3214.3,3.72692696]
[1768857662512,0.90665729,3215.1,3214.3,3.57128696]
[1768857662701,1.11962139,3215.5,3214.3,3.57128696]
[1768857662901,0.90659312,3215.4,3214.3,3.57128696]
[1768857663106,0.90659312,3215.3,3214.3,3.57128696]
[1768857663302,0.90659312,3215.2,3214.3,3.57128696]
[1768857663502,0.90659312,3215.1,3214.3,3.57128696]
[1768857663709,1.11658648,3215.4,3214.3,3.57128696]
[1768857664109,2.02330217,3215.4,3214.3,3.57128696]
[1768857664907,1.29151901,3215.3,3214.3,3.57128696]
[1768857665110,0.90671569,3215.2,3214.3,3.57128696]